bitfinex/quotes_BTCUSD_20241103
["timestamp","ask_amount","ask_price","bid_price","bid_amount"]
[1730594801611,0.58835109,69220.0,69219.0,0.24345525]
[1730594801804,0.58835109,69220.0,69219.0,0.25062127]
[1730594802011,0.68535109,69220.0,69219.0,0.25062127]
[1730594802233,0.68535109,69220.0,69219.0,0.04518261]
[1730594802446,0.68535109,69220.0,69219.0,0.05018261]
[1730594803001,0.68535109,69220.0,69219.0,0.04518261]
[1730594803465,0.68535109,69220.0,69219.0,0.15018261]
[1730594803645,0.68535109,69220.0,69219.0,0.10216602]
[1730594803849,0.68535109,69220.0,69219.0,0.10716602]
[1730594804296,0.68535109,69220.0,69219.0,0.10216602]
[1730594804436,0.68535109,69220.0,69219.0,0.10716602]
[1730594805329,0.68535109,69220.0,69219.0,0.10216602]
[1730594805719,0.68535109,69220.0,69219.0,0.00716602]
[1730594806203,0.68535109,69220.0,69219.0,0.00216602]
[1730594809842,0.69881384,69220.0,69219.0,0.00216602]
[1730594815030,0.68535109,69220.0,69219.0,0.00216602]
[1730594819825,0.68535109,69220.0,69219.0,0.0451988]
[1730594820414,0.68535109,69220.0,69219.0,0.00216602]
[1730594820545,0.68535109,69220.0,69219.0,0.0451988]
[1730594821373,0.68535109,69220.0,69219.0,0.00216602]
[1730594821581,0.68535109,69220.0,69219.0,0.0451988]
[1730594822429,0.68535109,69220.0,69219.0,0.00216602]
[1730594822665,0.68535109,69220.0,69219.0,0.06696778]
[1730594823055,0.68535109,69220.0,69219.0,0.21016896]
[1730594823272,0.68535109,69220.0,69219.0,0.5081304]
[1730594823461,0.68535109,69220.0,69219.0,0.40012746]
[1730594823462,0.506461,69220.0,69219.0,0.40012746]
[1730594823928,0.506461,69220.0,69219.0,0.52978139]
[1730594824148,0.506461,69220.0,69219.0,0.40514043]
[1730594824350,0.506461,69220.0,69219.0,0.41014043]
[1730594826348,0.506461,69220.0,69219.0,0.52062721]
[1730594827010,0.506461,69220.0,69219.0,0.36110805]
[1730594827182,0.506461,69220.0,69219.0,0.52069344]
[1730594830496,0.506461,69220.0,69219.0,0.41020666]
[1730594830702,0.506461,69220.0,69219.0,0.40520666]
[1730594830908,0.506461,69220.0,69219.0,0.41020666]
[1730594834271,0.506461,69220.0,69219.0,0.40520666]
[1730594834474,0.506461,69220.0,69219.0,0.41020666]
[1730594835329,0.506461,69220.0,69219.0,0.40520666]
[1730594835738,0.506461,69220.0,69219.0,0.41020666]
[1730594838540,0.506461,69220.0,69219.0,0.40520666]
[1730594838979,0.506461,69220.0,69219.0,0.41020666]
[1730594840717,0.506461,69220.0,69219.0,0.40524875]
[1730594840922,0.506461,69220.0,69219.0,0.41024875]
[1730594845065,0.506461,69220.0,69219.0,0.40524875]
[1730594845286,0.506461,69220.0,69219.0,0.41024875]
[1730594845733,0.506461,69220.0,69219.0,0.52073553]
[1730594845952,0.506461,69220.0,69219.0,0.71228851]
[1730594846603,0.506461,69220.0,69219.0,0.52073553]
[1730594848512,0.506461,69220.0,69219.0,0.71228608]
[1730594849618,0.506461,69220.0,69219.0,0.71227225]
[1730594850463,0.506461,69220.0,69219.0,0.73617225]
[1730594850677,0.506461,69220.0,69219.0,0.73817225]
[1730594850901,0.506461,69220.0,69219.0,0.74317225]
[1730594854102,0.506461,69220.0,69219.0,0.71427225]
[1730594856052,0.506461,69220.0,69219.0,0.71227225]
[1730594857291,0.506461,69220.0,69219.0,0.75608359]
[1730594860569,0.506461,69220.0,69219.0,0.78498359]
[1730594861596,0.506461,69220.0,69219.0,0.59343948]
[1730594862185,0.506461,69220.0,69219.0,0.78501477]
[1730594862604,0.506461,69220.0,69219.0,0.59343948]
[1730594863009,0.506461,69220.0,69219.0,0.59347911]
[1730594863817,0.506461,69220.0,69219.0,0.74128406]
[1730594863951,0.506461,69220.0,69219.0,0.78510249]
[1730594864155,0.506461,69220.0,69219.0,0.74128406]
[1730594864359,0.506461,69220.0,69219.0,0.59348628]
[1730594865109,0.506398,69220.0,69219.0,0.56766777]
[1730594865310,0.506398,69220.0,69219.0,0.71818576]
[1730594865424,0.506398,69220.0,69219.0,0.94170937]
[1730594865835,0.506398,69220.0,69219.0,0.93954335]
[1730594866272,0.506398,69220.0,69219.0,0.94170901]
[1730594867373,0.506398,69220.0,69219.0,0.94177736]
[1730594869463,0.506398,69220.0,69219.0,0.9396117]
[1730594869643,0.506398,69220.0,69219.0,0.94177736]
[1730594876246,0.506398,69220.0,69219.0,0.84207736]
[1730594880173,0.506398,69220.0,69219.0,0.84371936]
[1730594881797,0.506398,69220.0,69219.0,0.73323258]
[1730594882657,0.506398,69220.0,69219.0,0.73123258]
[1730594883374,0.50277248,69220.0,69219.0,0.5076691]
[1730594885114,0.50277248,69220.0,69219.0,0.5096691]
[1730594886190,0.50277248,69220.0,69219.0,0.5076691]
[1730594886395,0.67657248,69220.0,69219.0,0.3557691]
[1730594886835,0.67657248,69220.0,69219.0,0.50352379]
[1730594887756,0.67657248,69220.0,69219.0,0.60352379]
[1730594887974,0.67657248,69220.0,69219.0,0.71401057]
[1730594888591,0.67657248,69220.0,69219.0,0.36274969]
[1730594888816,0.67657248,69220.0,69219.0,0.5224073]
[1730594890420,0.67657248,69220.0,69219.0,0.71401397]
[1730594891053,0.67657248,69220.0,69219.0,0.70901397]
[1730594891269,0.67657248,69220.0,69219.0,0.71401397]
[1730594891486,0.67657248,69220.0,69219.0,0.70901397]
[1730594891709,0.67657248,69220.0,69219.0,0.71401397]
[1730594893215,0.67657248,69220.0,69219.0,0.35774969]
[1730594893444,0.67657248,69220.0,69219.0,0.71405219]
[1730594893692,0.67657248,69220.0,69219.0,0.52243264]
[1730594894590,0.67657248,69220.0,69219.0,0.54743264]
[1730594894815,0.50277248,69220.0,69219.0,0.8436495]
[1730594897623,0.50277248,69220.0,69219.0,0.84365165]
[1730594897901,0.50277248,69220.0,69219.0,0.84165165]
[1730594898113,0.67497248,69220.0,69219.0,0.83665165]
[1730594898339,0.67497248,69220.0,69219.0,0.84165165]
[1730594898564,0.67497248,69220.0,69219.0,0.83665165]
[1730594898785,0.67497248,69220.0,69219.0,0.45841041]
[1730594899007,0.67497248,69220.0,69219.0,0.84166613]
[1730594900030,0.67497248,69220.0,69219.0,0.83666613]
[1730594900234,0.67497248,69220.0,69219.0,0.84166613]
[1730594900702,0.67497248,69220.0,69219.0,0.72617935]
[1730594901551,0.67497248,69220.0,69219.0,0.73117935]
[1730594901775,0.67497248,69220.0,69219.0,0.72617935]
[1730594901986,0.67497248,69220.0,69219.0,0.73117935]
[1730594903089,0.67497248,69220.0,69219.0,0.70317935]
[1730594903513,0.67497248,69220.0,69219.0,0.69817935]
[1730594903690,0.67497248,69220.0,69219.0,0.66929935]
[1730594904604,0.67497248,69220.0,69219.0,0.44573351]
[1730594906131,0.67497248,69220.0,69219.0,0.40195279]
[1730594908149,0.67497248,69220.0,69219.0,0.4551576]
[1730594908609,0.67497248,69220.0,69219.0,0.26349754]
[1730594911076,0.67497248,69220.0,69219.0,0.26350545]
[1730594919295,0.67497248,69220.0,69219.0,0.4019607]
[1730594920362,0.67497248,69220.0,69219.0,0.59359805]
[1730594920579,0.67497248,69220.0,69219.0,0.4019607]
[1730594920789,0.67497248,69220.0,69219.0,0.59359805]
[1730594922856,0.67497248,69220.0,69219.0,0.4019607]
[1730594928601,0.67497248,69220.0,69219.0,0.59359805]
[1730594929813,0.67497248,69220.0,69219.0,0.4019607]
[1730594930026,0.67497248,69220.0,69219.0,0.59362203]
[1730594930254,0.67497248,69220.0,69219.0,0.4019607]
[1730594931825,0.67497248,69220.0,69219.0,0.59365205]
[1730594933441,0.67497248,69220.0,69219.0,0.59371357]
[1730594936372,0.67497248,69220.0,69219.0,0.26355796]
[1730594936596,0.67497248,69220.0,69219.0,0.16355796]
[1730594937848,0.67497248,69220.0,69219.0,0.26355796]
[1730594941380,0.67497248,69220.0,69219.0,0.16355417]
[1730594941585,0.67497248,69220.0,69219.0,0.26355417]
[1730594941919,0.67497248,69220.0,69219.0,0.16355417]
[1730594942338,0.68847596,69220.0,69219.0,0.16355417]
[1730594942718,0.68847596,69220.0,69219.0,0.00380766]
[1730594942931,0.68847596,69220.0,69219.0,0.27174753]
[1730594943170,0.68847596,69220.0,69219.0,0.00380766]
[1730594943747,0.68847596,69220.0,69219.0,0.27174829]
[1730594944857,0.68846691,69220.0,69219.0,0.27174829]
[1730594945529,0.68846691,69220.0,69219.0,0.1119982]
[1730594945953,0.68846691,69220.0,69219.0,0.00380766]
[1730594948371,0.68845825,69220.0,69219.0,0.00380766]
[1730594949289,0.67497248,69220.0,69219.0,0.00380766]
[1730594949695,0.67497248,69220.0,69219.0,0.27172437]
[1730594950579,0.67497248,69220.0,69219.0,0.16354349]
[1730594951346,0.67497248,69220.0,69219.0,0.25006401]
[1730594954064,0.67497248,69220.0,69219.0,0.16354349]
[1730594954490,0.68845549,69220.0,69219.0,0.16354349]
[1730594955099,0.67497248,69220.0,69219.0,0.16354349]
[1730594955496,0.67497248,69220.0,69219.0,0.22840955]
[1730594956636,0.68845574,69220.0,69219.0,0.22840955]
[1730594958361,0.68845574,69220.0,69219.0,0.06867372]
[1730594959016,0.67497248,69220.0,69219.0,0.06867372]
[1730594959229,0.68845664,69220.0,69219.0,0.06867372]
[1730594959859,0.68845664,69220.0,69219.0,0.00380766]
[1730594962769,0.67497248,69220.0,69219.0,0.00380766]
[1730594963195,0.68846159,69220.0,69219.0,0.00380766]
[1730594963382,0.68846159,69220.0,69219.0,0.04703333]
[1730594963586,0.68846159,69220.0,69219.0,0.04703309]
[1730594965404,0.68846159,69220.0,69219.0,0.00380766]
[1730594965836,0.51626159,69220.0,69219.0,0.22820188]
[1730594966243,0.51627072,69220.0,69219.0,0.22820188]
[1730594966465,0.51627072,69220.0,69219.0,0.16336563]
[1730594969254,0.50277248,69220.0,69219.0,0.16336563]
[1730594969670,0.50277248,69220.0,69219.0,0.24981397]
[1730594970411,0.50277248,69220.0,69219.0,0.16338585]
[1730594970817,0.5162799,69220.0,69219.0,0.16338585]
[1730594970999,0.5162799,69220.0,69219.0,0.24984937]
[1730594971401,0.5162799,69220.0,69219.0,0.16338585]
[1730594972495,0.5162799,69220.0,69219.0,0.24986087]
[1730594973258,0.50277248,69220.0,69219.0,0.24986087]
[1730594974446,0.50277248,69220.0,69219.0,0.16338585]
[1730594974656,0.5162855,69220.0,69219.0,0.16338585]
[1730594975024,0.5162855,69220.0,69219.0,0.24992424]
[1730594976759,0.5162855,69220.0,69219.0,0.16343715]
[1730594978472,0.51628381,69220.0,69219.0,0.16343715]
[1730594978688,0.51628381,69220.0,69219.0,0.27154601]
[1730594979802,0.51628381,69220.0,69219.0,0.27168356]
[1730594980671,0.51628381,69220.0,69219.0,0.16351916]
[1730594981989,0.50277248,69220.0,69219.0,0.16351916]
[1730594982196,0.5162834,69220.0,69219.0,0.16351916]
[1730594984257,0.5162834,69220.0,69219.0,0.16361187]
[1730594988955,0.51628373,69220.0,69219.0,0.16361187]
[1730594990901,0.51628373,69220.0,69219.0,0.16144621]
[1730594992109,0.51628373,69220.0,69219.0,0.26144621]
[1730594992351,0.51628373,69220.0,69219.0,0.64026087]
[1730594992593,0.50277248,69220.0,69219.0,0.51038824]
[1730594998945,0.50277248,69220.0,69219.0,0.39990146]
[1730594999169,0.50277248,69220.0,69219.0,0.26144621]
[1730594999381,0.50277248,69220.0,69219.0,0.39130732]
[1730594999596,0.67727248,69220.0,69219.0,0.39130732]
[1730595000751,0.67727248,69220.0,69219.0,0.16144621]
[1730595001825,0.69077411,69220.0,69219.0,0.16144621]
[1730595002037,0.67727248,69220.0,69219.0,0.16144621]
[1730595002289,0.69077448,69220.0,69219.0,0.16144621]
[1730595003777,0.69077448,69220.0,69219.0,0.26967636]
[1730595004205,0.69077448,69220.0,69219.0,0.16144621]
[1730595005049,0.69077448,69220.0,69219.0,0.04493661]
[1730595005050,0.71737621,69220.0,69219.0,0.04493661]
[1730595005252,0.71737621,69220.0,69219.0,0.001642]
[1730595005658,0.71736507,69220.0,69219.0,0.001642]
[1730595006792,1.00528632,69220.0,69219.0,0.001642]
[1730595007665,0.86082032,69220.0,69219.0,0.001642]
[1730595008972,0.86079199,69220.0,69219.0,0.001642]
[1730595009170,0.97019373,69220.0,69219.0,0.001642]
[1730595009383,1.00525799,69220.0,69219.0,0.001642]
[1730595011321,0.86079199,69220.0,69219.0,0.001642]
[1730595012832,1.00522548,69220.0,69219.0,0.001642]
[1730595014020,0.86075948,69220.0,69219.0,0.001642]
[1730595014398,1.00522548,69220.0,69219.0,0.001642]
[1730595015030,0.86075948,69220.0,69219.0,0.001642]
[1730595015429,0.86074048,69220.0,69219.0,0.001642]
[1730595016438,0.99173881,69220.0,69219.0,0.001642]
[1730595016614,1.00520448,69220.0,69219.0,0.001642]
[1730595017926,0.86073848,69220.0,69219.0,0.001642]
[1730595018591,0.85573848,69220.0,69219.0,0.001642]
[1730595019424,0.71728323,69220.0,69219.0,0.001642]
[1730595019846,0.71727535,69220.0,69219.0,0.001642]
[1730595020244,0.71227535,69220.0,69219.0,0.001642]
[1730595020454,0.71727535,69220.0,69219.0,0.001642]
[1730595026967,0.71729812,69220.0,69219.0,0.001642]
[1730595030682,0.68227248,69220.0,69219.0,0.001642]
[1730595030895,0.71733294,69220.0,69219.0,0.001642]
[1730595034076,0.68227248,69220.0,69219.0,0.001642]
[1730595034298,0.71737095,69220.0,69219.0,0.001642]
[1730595038344,0.71740974,69220.0,69219.0,0.001642]
[1730595041660,0.68227248,69220.0,69219.0,0.001642]
[1730595041867,0.86188243,69220.0,69219.0,0.001642]
[1730595043449,0.71741643,69220.0,69219.0,0.001642]
[1730595045069,0.68227248,69220.0,69219.0,0.001642]
[1730595045319,0.71742261,69220.0,69219.0,0.001642]
[1730595045548,0.71742245,69220.0,69219.0,0.001642]
[1730595045787,0.86188845,69220.0,69219.0,0.001642]
[1730595046015,0.71742245,69220.0,69219.0,0.001642]
[1730595046692,0.86188845,69220.0,69219.0,0.001642]
[1730595047104,0.71742245,69220.0,69219.0,0.001642]
[1730595047364,0.71742151,69220.0,69219.0,0.001642]
[1730595048490,0.86188751,69220.0,69219.0,0.001642]
[1730595055568,0.82673848,69220.0,69219.0,0.001642]
[1730595055783,0.86188975,69220.0,69219.0,0.001642]
[1730595056206,1.005345,69220.0,69219.0,0.001642]
[1730595059207,0.97019373,69220.0,69219.0,0.001642]
[1730595059436,1.00534556,69220.0,69219.0,0.001642]
[1730595061615,0.97019373,69220.0,69219.0,0.001642]
[1730595061841,1.11583383,69220.0,69219.0,0.001642]
[1730595062465,1.00534705,69220.0,69219.0,0.001642]
[1730595064780,1.11583383,69220.0,69219.0,0.001642]
[1730595065027,1.00534705,69220.0,69219.0,0.001642]
[1730595065236,1.00533808,69220.0,69219.0,0.001642]
[1730595065450,1.01615192,69220.0,69219.0,0.001642]
[1730595066767,0.72823067,69220.0,69219.0,0.001642]
[1730595067637,0.53791683,69220.0,69219.0,0.001642]
[1730595067862,0.54291683,69220.0,69219.0,0.001642]
[1730595069077,0.54291476,69220.0,69219.0,0.001642]
[1730595069531,0.55372765,69220.0,69219.0,0.001642]
[1730595073644,0.54291476,69220.0,69219.0,0.001642]
[1730595075504,0.50777248,69220.0,69219.0,0.001642]
[1730595076689,0.50277248,69220.0,69219.0,0.001642]
[1730595076885,0.50777248,69220.0,69219.0,0.001642]
[1730595077521,0.5379191,69220.0,69219.0,0.001642]
[1730595077728,0.5429191,69220.0,69219.0,0.001642]
[1730595080043,0.5429186,69220.0,69219.0,0.001642]
[1730595084216,0.54292251,69220.0,69219.0,0.001642]
[1730595085032,0.53792251,69220.0,69219.0,0.001642]
[1730595085428,0.53792251,69220.0,69219.0,0.161547]
[1730595085634,0.53792251,69220.0,69219.0,0.06659046]
[1730595085831,0.53792251,69220.0,69219.0,0.22642445]
[1730595086402,0.51629172,69220.0,69219.0,0.22642445]
[1730595086608,0.51629172,69220.0,69219.0,0.001642]
[1730595086609,0.53790606,69220.0,69219.0,0.001642]
[1730595087434,0.51629172,69220.0,69219.0,0.001642]
[1730595087647,0.51629172,69220.0,69219.0,0.04491918]
[1730595089499,0.51629172,69220.0,69219.0,0.001642]
[1730595091532,0.51626848,69220.0,69219.0,0.001642]
[1730595101779,0.50277248,69220.0,69219.0,0.001642]
[1730595104266,0.5162616,69220.0,69219.0,0.001642]
[1730595105753,0.50277248,69220.0,69219.0,0.001642]
[1730595105975,0.51626496,69220.0,69219.0,0.001642]
[1730595109851,0.50277248,69220.0,69219.0,0.001642]
[1730595110059,0.51627419,69220.0,69219.0,0.001642]
[1730595111444,0.51627419,69220.0,69219.0,0.04485626]
[1730595111644,0.51627419,69220.0,69219.0,0.001642]
[1730595111982,0.51627419,69220.0,69219.0,0.04486132]
[1730595112398,0.51627419,69220.0,69219.0,0.04486133]
[1730595112643,0.51627419,69220.0,69219.0,0.001642]
[1730595117583,0.51627419,69220.0,69219.0,0.06647773]
[1730595118862,0.51627419,69220.0,69219.0,0.226084]
[1730595119915,0.51628855,69220.0,69219.0,0.226084]
[1730595120343,0.51628851,69220.0,69219.0,0.226084]
[1730595121594,0.51629152,69220.0,69219.0,0.226084]
[1730595122384,0.60709152,69220.0,69219.0,0.226084]
[1730595123796,0.60709152,69220.0,69219.0,0.16124827]
[1730595125021,0.60709152,69220.0,69219.0,0.24769591]
[1730595126558,0.60709152,69220.0,69219.0,0.16124827]
[1730595126788,0.60709152,69220.0,69219.0,0.16133079]
[1730595127574,0.60709152,69220.0,69219.0,0.26947981]
[1730595129455,0.62873485,69220.0,69219.0,0.26947981]
[1730595129734,0.60709152,69220.0,69219.0,0.16133079]
[1730595129987,0.60709957,69220.0,69219.0,0.16133079]
[1730595130596,0.6287454,69220.0,69219.0,0.16133079]
[1730595131141,0.60709957,69220.0,69219.0,0.16133079]
[1730595131312,0.60709957,69220.0,69219.0,0.16150182]
[1730595131522,0.6287471,69220.0,69219.0,0.16150182]
[1730595131928,0.60709957,69220.0,69219.0,0.16150182]
[1730595132549,0.628747,69220.0,69219.0,0.16150182]
[1730595133573,0.62874962,69220.0,69219.0,0.16150182]
[1730595134021,0.59357248,69220.0,69219.0,0.16150182]
[1730595134367,0.62874823,69220.0,69219.0,0.16150182]
[1730595136061,0.62874823,69220.0,69219.0,0.16151573]
[1730595136272,0.62874928,69220.0,69219.0,0.16151573]
[1730595137190,0.59357248,69220.0,69219.0,0.16151573]
[1730595137414,0.62875001,69220.0,69219.0,0.16151949]
[1730595140550,0.62875001,69220.0,69219.0,0.1615294]
[1730595140765,0.59357248,69220.0,69219.0,0.1615294]
[1730595140965,0.62875101,69220.0,69219.0,0.1615294]
[1730595144346,0.59357248,69220.0,69219.0,0.1615294]
[1730595144548,0.62875218,69220.0,69219.0,0.1615294]
[1730595148363,0.62875837,69220.0,69219.0,0.1615294]
[1730595152599,0.53795837,69220.0,69219.0,0.1615294]
[1730595154322,0.53795837,69220.0,69219.0,0.16159084]
[1730595155177,0.50277248,69220.0,69219.0,0.16159084]
[1730595155921,0.52442623,69220.0,69219.0,0.16159084]
[1730595156500,0.53795982,69220.0,69219.0,0.16159084]
[1730595156706,0.5379601,69220.0,69219.0,0.16159084]
[1730595156916,0.50277248,69220.0,69219.0,0.16159084]
[1730595157128,0.53796019,69220.0,69219.0,0.16159084]
[1730595158691,0.51630621,69220.0,69219.0,0.16159084]
[1730595158898,0.53795952,69220.0,69219.0,0.16159084]
[1730595159957,0.51630621,69220.0,69219.0,0.16159084]
[1730595163623,0.51630694,69220.0,69219.0,0.16158941]
[1730595166098,0.53796464,69220.0,69219.0,0.16158941]
[1730595168531,0.51630694,69220.0,69219.0,0.16158941]
[1730595170029,0.53796565,69220.0,69219.0,0.16158941]
[1730595170460,0.51630694,69220.0,69219.0,0.16158941]
[1730595170665,0.53796667,69220.0,69219.0,0.16158941]
[1730595170891,0.50277248,69220.0,69219.0,0.16158941]
[1730595171124,0.53796974,69220.0,69219.0,0.16158941]
[1730595171337,0.51630989,69220.0,69219.0,0.16158941]
[1730595171960,0.53796942,69220.0,69219.0,0.16158941]
[1730595172284,0.53796954,69220.0,69219.0,0.16158941]
[1730595172915,0.51630989,69220.0,69219.0,0.16158941]
[1730595173320,0.53796965,69220.0,69219.0,0.16158941]
[1730595174717,0.53797121,69220.0,69219.0,0.16158941]
[1730595177334,0.63267121,69220.0,69219.0,0.16158941]
[1730595177541,0.63267121,69220.0,69219.0,0.16158741]
[1730595178803,0.63266827,69220.0,69219.0,0.16158741]
[1730595179244,0.63266826,69220.0,69219.0,0.16158741]
[1730595182672,0.63266826,69220.0,69219.0,0.16143753]
[1730595183303,0.71276826,69220.0,69219.0,0.16143753]
[1730595184499,0.67757248,69220.0,69219.0,0.16143753]
[1730595184696,0.71277896,69220.0,69219.0,0.16143753]
[1730595195222,0.82326574,69220.0,69219.0,0.16143753]
[1730595195460,0.82325673,69220.0,69219.0,0.06660196]
[1730595195687,0.97855274,69220.0,69219.0,0.001642]
[1730595196111,0.98355274,69220.0,69219.0,0.001642]
[1730595196559,1.23749477,69220.0,69219.0,0.001642]
[1730595196789,1.12700799,69220.0,69219.0,0.001642]
[1730595198785,1.12697333,69220.0,69219.0,0.001642]
[1730595199240,1.12696264,69220.0,69219.0,0.001642]
[1730595201177,1.12896264,69220.0,69219.0,0.001642]
[1730595203522,1.12696264,69220.0,69219.0,0.001642]
[1730595213315,1.12693956,69220.0,69219.0,0.001642]
[1730595216473,1.09179983,69220.0,69219.0,0.001642]
[1730595216611,1.1269429,69220.0,69219.0,0.001642]
[1730595217235,1.12694388,69220.0,69219.0,0.001642]
[1730595218541,0.98247788,69220.0,69219.0,0.001642]
[1730595218759,0.72853585,69220.0,69219.0,0.001642]
[1730595219582,0.83902263,69220.0,69219.0,0.001642]
[1730595220427,0.80387492,69220.0,69219.0,0.001642]
[1730595220678,0.8390395,69220.0,69219.0,0.001642]
[1730595224079,0.79305926,69220.0,69219.0,0.001642]
[1730595224275,0.8390636,69220.0,69219.0,0.001642]
[1730595225093,0.97751885,69220.0,69219.0,0.001642]
[1730595225510,1.12198485,69220.0,69219.0,0.001642]
[1730595225936,0.97751885,69220.0,69219.0,0.001642]
[1730595227750,0.96671882,69220.0,69219.0,0.001642]
[1730595227956,0.97755091,69220.0,69219.0,0.001642]
[1730595231877,0.97755008,69220.0,69219.0,0.001642]
[1730595235092,0.9423466,69220.0,69219.0,0.001642]
[1730595235302,0.97754977,69220.0,69219.0,0.001642]
[1730595242127,0.97754967,69220.0,69219.0,0.001642]
[1730595245310,0.93151451,69220.0,69219.0,0.001642]
[1730595245511,0.97755306,69220.0,69219.0,0.001642]
[1730595249046,0.97755833,69220.0,69219.0,0.001642]
[1730595250974,0.7236163,69220.0,69219.0,0.001642]
[1730595251202,0.7286163,69220.0,69219.0,0.001642]
[1730595252201,0.7286163,69220.0,69219.0,0.04496418]
[1730595252419,0.60247248,69220.0,69219.0,0.04496418]
[1730595252643,0.64851022,69220.0,69219.0,0.001642]
[1730595253082,0.64851022,69220.0,69219.0,0.04496627]
[1730595253716,0.842197,69220.0,69219.0,0.04496627]
[1730595254937,0.73171022,69220.0,69219.0,0.04496627]
[1730595255142,0.54881022,69220.0,69219.0,0.001642]
[1730595255352,0.54881022,69220.0,69219.0,0.28317079]
[1730595255551,0.54881022,69220.0,69219.0,0.366661]
[1730595256033,0.53797781,69220.0,69219.0,0.25835555]
[1730595256449,0.53797781,69220.0,69219.0,0.35835555]
[1730595258049,0.53797781,69220.0,69219.0,0.35826802]
[1730595258254,0.51631299,69220.0,69219.0,0.35826802]
[1730595259331,0.51631299,69220.0,69219.0,0.46647754]
[1730595259564,0.51629488,69220.0,69219.0,0.46647754]
[1730595261493,0.51629488,69220.0,69219.0,0.35826802]
[1730595262639,0.51629488,69220.0,69219.0,0.26146802]
[1730595262859,0.51629488,69220.0,69219.0,0.26137281]
[1730595263314,0.51628908,69220.0,69219.0,0.101642]
[1730595263538,0.51628908,69220.0,69219.0,0.18817814]
[1730595263750,0.51628834,69220.0,69219.0,0.18817814]
[1730595263963,0.51628834,69220.0,69219.0,0.34790895]
[1730595264796,0.50277248,69220.0,69219.0,0.34790895]
[1730595264971,0.51628028,69220.0,69219.0,0.34790895]
[1730595266266,0.51628028,69220.0,69219.0,0.26137281]
[1730595267135,0.51628028,69220.0,69219.0,0.36955029]
[1730595267346,0.51628028,69220.0,69219.0,0.36946814]
[1730595267783,0.50277248,69220.0,69219.0,0.36946814]
[1730595269313,0.50277248,69220.0,69219.0,0.26132383]
[1730595274174,0.50277248,69220.0,69219.0,0.34780044]
[1730595274175,0.51627273,69220.0,69219.0,0.34780044]
[1730595276063,0.51627421,69220.0,69219.0,0.34780044]
[1730595276491,0.51627421,69220.0,69219.0,0.24771655]
[1730595276849,0.51627421,69220.0,69219.0,0.34771655]
[1730595277046,0.51627421,69220.0,69219.0,0.26124423]
[1730595277769,0.51627839,69220.0,69219.0,0.26124423]
[1730595278432,0.50277248,69220.0,69219.0,0.26124423]
[1730595279047,0.51627869,69220.0,69219.0,0.26124423]
[1730595281098,0.51627869,69220.0,69219.0,0.001642]
[1730595281283,0.51627869,69220.0,69219.0,0.26124417]
[1730595282797,0.51627869,69220.0,69219.0,0.34771646]
[1730595285719,0.51627869,69220.0,69219.0,0.34774398]
[1730595286133,0.51627869,69220.0,69219.0,0.37663398]
[1730595286363,0.51627869,69220.0,69219.0,0.34774398]
[1730595290435,0.52980114,69220.0,69219.0,0.34779364]
[1730595291286,0.52980114,69220.0,69219.0,0.26129423]
[1730595293034,0.52980114,69220.0,69219.0,0.36941849]
[1730595294992,0.52980114,69220.0,69219.0,0.36950614]
[1730595295212,0.52980114,69220.0,69219.0,0.26134649]
[1730595296348,0.52980114,69220.0,69219.0,0.29023649]
[1730595296526,0.52980114,69220.0,69219.0,0.26134649]
[1730595296933,0.51629493,69220.0,69219.0,0.26134649]
[1730595299978,0.51629741,69220.0,69219.0,0.26134649]
[1730595302005,0.69109741,69220.0,69219.0,0.26134649]
[1730595302439,0.69109189,69220.0,69219.0,0.26134649]
[1730595305502,0.71272346,69220.0,69219.0,0.26134649]
[1730595306156,0.67757248,69220.0,69219.0,0.26134649]
[1730595306374,0.71272802,69220.0,69219.0,0.26134649]
[1730595307277,0.71272802,69220.0,69219.0,0.26155095]
[1730595309655,0.67757248,69220.0,69219.0,0.26155095]
[1730595309870,0.71272113,69220.0,69219.0,0.26155095]
[1730595314033,0.71272113,69220.0,69219.0,0.16155095]
[1730595314034,0.82320791,69220.0,69219.0,0.16155095]
[1730595314251,0.97848705,69220.0,69219.0,0.001642]
[1730595314702,1.1219423,69220.0,69219.0,0.001642]
[1730595316202,1.1269423,69220.0,69219.0,0.001642]
[1730595317106,1.1219423,69220.0,69219.0,0.001642]
[1730595317294,1.1269423,69220.0,69219.0,0.001642]
[1730595317509,1.23942908,69220.0,69219.0,0.001642]
[1730595318257,1.23937646,69220.0,69219.0,0.001642]
[1730595319030,1.23937646,69220.0,69204.0,0.21818552]
[1730595319031,0.1735,69206.0,69204.0,0.21818552]
[1730595319243,0.14846466,69205.0,69204.0,0.21818552]
[1730595319444,0.82391614,69205.0,69204.0,0.21818552]
[1730595319644,0.82103429,69205.0,69204.0,0.00164]
[1730595320693,0.79943673,69205.0,69204.0,0.00164]
[1730595321317,0.82099751,69205.0,69204.0,0.00164]
[1730595323840,0.82095333,69205.0,69204.0,0.00164]
[1730595324250,0.79940559,69205.0,69204.0,0.00164]
[1730595329219,0.78593826,69205.0,69204.0,0.00164]
[1730595329442,0.79939857,69205.0,69204.0,0.00164]
[1730595329878,0.68891179,69205.0,69204.0,0.00164]
[1730595330720,0.67545148,69205.0,69204.0,0.00164]
[1730595330937,0.68891187,69205.0,69204.0,0.00164]
[1730595334277,0.67545148,69205.0,69204.0,0.00164]
[1730595334487,0.68891576,69205.0,69204.0,0.00164]
[1730595335764,0.51541576,69205.0,69204.0,0.00164]
[1730595336187,0.50195148,69205.0,69204.0,0.00164]
[1730595336400,0.51541949,69205.0,69204.0,0.00164]
[1730595338174,0.50195148,69205.0,69204.0,0.00164]
[1730595338389,0.51542314,69205.0,69204.0,0.00164]
[1730595341895,0.51543733,69205.0,69204.0,0.00164]
[1730595343492,0.53703372,69205.0,69204.0,0.00164]
[1730595344785,0.51543733,69205.0,69204.0,0.00164]
[1730595347434,0.5370489,69205.0,69204.0,0.00164]
[1730595352355,0.50195148,69205.0,69204.0,0.00164]
[1730595352562,0.53706417,69205.0,69204.0,0.00164]
[1730595355158,0.53706443,69205.0,69204.0,0.00164]
[1730595357600,0.71056443,69205.0,69204.0,0.00164]
[1730595358633,0.71056443,69205.0,69204.0,0.0448834]
[1730595358863,0.71056443,69205.0,69204.0,0.00164]
[1730595359312,0.67545148,69205.0,69204.0,0.0448834]
[1730595359502,0.7105706,69205.0,69204.0,0.0448834]
[1730595360371,0.7105706,69205.0,69204.0,0.00164]
[1730595360805,0.7105706,69205.0,69204.0,0.0665051]
[1730595361012,0.7105706,69205.0,69204.0,0.00164]
[1730595361247,0.7105706,69205.0,69204.0,0.0665051]
[1730595361463,0.7105706,69205.0,69204.0,0.22628001]
[1730595362513,0.7105706,69205.0,69204.0,0.22634858]
[1730595362925,0.7105706,69205.0,69204.0,0.16141491]
[1730595365215,0.67545148,69205.0,69204.0,0.16141491]
[1730595365450,0.71059394,69205.0,69204.0,0.16141491]